[Event "Czech Open-Rapid 2022"]
[Site "Pardubice"]
[Date "2022.07.21"]
[Round "5.36"]
[White "Ni, Polina"]
[Black "Jun, Rudolf"]
[Result "0-1"]
[ECO "B31"]
[WhiteElo "1871"]
[BlackElo "2134"]
[Annotator "NA RC"]
[PlyCount "104"]
[EventDate "2022.07.20"]
[EventType "swiss"]
[EventCountry "CZE"]
[SourceTitle "playchess.com"]
[Source "ChessBase"]
[SourceQuality "1"]
[TimeControl "1200+10"]

1. e4 {[%emt 0:00:01]} c5 {[%emt 0:00:01]} 2. Nf3 {[%emt 0:00:02]} Nc6 {[%emt 0:00:01]} 3. Bb5 {[%emt 0:00:01]} g6 {[%emt 0:00:01]} 4. Bxc6 {[%emt 0:00:16]} dxc6 {[%emt 0:00:02]} 5. e5 {[%emt 0:00:10]} Bg7 {[%emt 0:00:08]} 6. O-O {[%emt 0:00:03]} Bg4 {[%emt 0:00:03]} 7. Qe2 {[%emt 0:00:24]} Bxf3 {[%emt 0:00:03]} 8. gxf3 {[%emt 0:00:00]} e6 {[%emt 0:00:02]} 9. d3 {[%emt 0:00:45]} Ne7 {[%emt 0:00:10]} 10. Bg5 {[%emt 0:00:52]} h6 {[%emt 0:00:02]} 11. Bd2 {[%emt 0:01:13]} Nf5 {[%emt 0:00:09]} 12. c3 {[%emt 0:03:31]} Qd5 {[%emt 0:00:34]} 13. Bf4 {[%emt 0:03:06]} Rd8 {[%emt 0:00:49]} 14. Rd1 {[%emt 0:02:47]} g5 {[%emt 0:00:31]} 15. Bg3 {[%emt 0:00:39]} h5 {[%emt 0:00:40]} 16. h3 {[%emt 0:00:27]} Nxg3 {[%emt 0:00:04]} 17. fxg3 {[%emt 0:00:01]} Bxe5 {[%emt 0:00:15]} 18. Kf2 {[%emt 0:00:58]} h4 {[%emt 0:00:21]} 19. g4 {[%emt 0:00:11]} Bc7 {[%emt 0:00:28]} 20. Na3 {[%emt 0:00:24]} Qd6 {[%emt 0:00:16]} 21. Kf1 {[%emt 0:02:11]} b5 {[%emt 0:00:05]} 22. d4 {[%emt 0:00:33]} c4 {[%emt 0:00:07]} 23. Nc2 {[%emt 0:00:22]} Qg3 {[%emt 0:01:20]} 24. Qg2 {[%emt 0:01:02]} a5 {[%emt 0:00:11]} 25. Ne3 {[%emt 0:00:56]} Qxg2+ {[%emt 0:00:07]} 26. Kxg2 {[%emt 0:00:01]} Bf4 {[%emt 0:00:01]} 27. Kf2 {[%emt 0:00:08]} Rb8 {[%emt 0:00:13]} 28. Ke2 {[%emt 0:00:20]} Kd7 {[%emt 0:00:07]} 29. b3 {[%emt 0:00:41]} Rb7 {[%emt 0:00:40]} 30. bxc4 {[%emt 0:00:14]} Bxe3 {[%emt 0:00:01]} 31. Kxe3 {[%emt 0:00:17]} bxc4 {[%emt 0:00:07]} 32. Rd2 {[%emt 0:00:18]} Rhb8 {[%emt 0:00:03]} 33. f4 {[%emt 0:00:57]} Rb2 {[%emt 0:00:17]} 34. Rad1 {[%emt 0:00:04]} a4 {[%emt 0:00:04]} 35. fxg5 {[%emt 0:00:45]} a3 {[%emt 0:00:03]} 36. Ke4 {[%emt 0:00:47]} Rxd2 37. Rxd2 Rb2 {[%emt 0:00:04]} 38. Rd1 {[%emt 0:00:26]} Rxa2 {[%emt 0:00:07]} 39. Ke5 {[%emt 0:00:21]} Ke7 {[%emt 0:00:03]} 40. Rf1 {[%emt 0:00:23]} Re2+ {[%emt 0:00:03]} 41. Kf4 {[%emt 0:00:07]} a2 {[%emt 0:00:03]} 42. Ra1 {[%emt 0:00:11]} Kf8 {[%emt 0:00:07]} 43. g6 {[%emt 0:00:09]} f6 {[%emt 0:00:02]} 44. Kf3 {[%emt 0:00:13]} Rc2 {[%emt 0:00:38]} 45. Kf4 {[%emt 0:00:06]} Kg7 {[%emt 0:00:02]} 46. g5 f5 47. Ke5 {[%emt 0:00:19]} Re2+ {[%emt 0:00:35]} 48. Kd6 {[%emt 0:00:06]} f4 {[%emt 0:00:02]} 49. Rf1 {[%emt 0:00:20]} f3 {[%emt 0:00:07]} 50. Ke7 {[%emt 0:00:09]} f2 {[%emt 0:00:03]} 51. Ke8 {[%emt 0:00:10]} Kxg6 {[%emt 0:00:10]} 52. Ra1 {[%emt 0:00:11]} Re1 {[%emt 0:00:05]} 0-1

[Event "Czech Open-Rapid 2022"]
[Site "Pardubice"]
[Date "2022.07.21"]
[Round "5.37"]
[White "Bares, Jachym"]
[Black "Lev, Lukas"]
[Result "1-0"]
[ECO "B07"]
[WhiteElo "2129"]
[BlackElo "1679"]
[Annotator "NA RC"]
[PlyCount "27"]
[EventDate "2022.07.20"]
[EventType "swiss"]
[EventCountry "CZE"]
[SourceTitle "playchess.com"]
[Source "ChessBase"]
[SourceQuality "1"]
[TimeControl "1200+10"]

1. e4 {[%emt 0:00:21]} d6 {[%emt 0:00:11]} 2. d4 {[%emt 0:00:03]} Nf6 {[%emt 0:00:10]} 3. Nc3 {[%emt 0:00:20]} g6 {[%emt 0:00:02]} 4. Be3 {[%emt 0:00:06]} Bg7 {[%emt 0:00:03]} 5. f3 {[%emt 0:00:23]} O-O {[%emt 0:00:10]} 6. Qd2 {[%emt 0:00:02]} e5 {[%emt 0:00:14]} 7. Nge2 {[%emt 0:00:29]} c6 {[%emt 0:01:05]} 8. O-O-O {[%emt 0:00:08]} Qc7 {[%emt 0:00:34]} 9. h4 {[%emt 0:00:06]} b5 {[%emt 0:01:08]} 10. Bh6 {[%emt 0:00:27]} a5 {[%emt 0:01:04]} 11. Bxg7 {[%emt 0:00:02]} Kxg7 {[%emt 0:00:02]} 12. h5 {[%emt 0:00:16]} Bd7 {[%emt 0:01:10]} 13. Qg5 {[%emt 0:01:58]} a4 {[%emt 0:02:52]} 14. h6+ {[%emt 0:00:19]} 1-0

[Event "Czech Open-Rapid 2022"]
[Site "Pardubice"]
[Date "2022.07.21"]
[Round "5.38"]
[White "Brousek, Jan"]
[Black "Kotva, Milan"]
[Result "0-1"]
[ECO "C30"]
[WhiteElo "1538"]
[BlackElo "1833"]
[Annotator "NA RC COMBH"]
[PlyCount "40"]
[EventDate "2022.07.20"]
[EventType "swiss"]
[EventCountry "CZE"]
[SourceTitle "playchess.com"]
[Source "ChessBase"]
[SourceQuality "1"]
[TimeControl "1200+10"]

1. e4 {[%emt 0:00:06]} e5 {[%emt 0:00:27]} 2. f4 {[%emt 0:00:02]} Bc5 {[%emt 0:00:24]} 3. Nf3 {[%emt 0:00:01]} d6 {[%emt 0:00:01]} 4. b4 {[%emt 0:00:02]} Bb6 {[%emt 0:00:04]} 5. Bb2 {[%emt 0:00:07]} Nc6 {[%emt 0:01:09]} 6. Bc4 {[%emt 0:00:13]} Nf6 {[%emt 0:00:07]} 7. b5 {[%emt 0:02:01]} Na5 {[%emt 0:00:39]} 8. Bb3 {[%emt 0:00:21]} O-O {[%emt 0:00:44]} 9. fxe5 {[%emt 0:00:13]} dxe5 {[%emt 0:00:01]} 10. d3 {[%emt 0:00:03]} Ng4 {[%emt 0:00:43]} 11. Qe2 {[%emt 0:00:20]} a6 {[%emt 0:00:58]} 12. Nxe5 {[%emt 0:01:33]} Nxe5 {[%emt 0:01:02]} 13. Bxe5 {[%emt 0:00:03]} axb5 {[%emt 0:00:23]} 14. Nc3 {[%emt 0:00:16]} Bd4 {[%emt 0:00:12]} 15. Bxd4 {[%emt 0:00:43]} Qxd4 {[%emt 0:00:02]} 16. Kd2 {[%emt 0:00:02]} c6 {[%emt 0:01:02]} 17. Rhf1 {[%emt 0:00:38]} b4 {[%emt 0:00:35]} 18. Na4 {[%emt 0:00:28]} b5 {[%emt 0:00:47]} 19. Rxf7 {[%emt 0:00:10]} Nxb3+ {[%emt 0:00:15]} 20. axb3 {[%emt 0:00:19]} Rxf7 {[%emt 0:00:09]} 0-1

[Event "Czech Open-Rapid 2022"]
[Site "Pardubice"]
[Date "2022.07.21"]
[Round "5.39"]
[White "Baron, Patrik"]
[Black "Pacl, Vaclav"]
[Result "0-1"]
[ECO "B01"]
[WhiteElo "1800"]
[BlackElo "2036"]
[Annotator "TA"]
[PlyCount "76"]
[EventDate "2022.07.20"]
[EventType "swiss"]
[EventCountry "CZE"]
[SourceTitle "playchess.com"]
[Source "ChessBase"]
[SourceQuality "1"]
[TimeControl "1200+10"]

{[%evp 10,76,30,25,31,-8,-8,-14,-10,-16,5,-144,-89,-108,-88,-145,-154,-145,-141,-155,-116,-127,-104,-104,-108,-107,-107,-195,-94,-102,-68,-62,-34,-46,-39,-54,-21,-82,-64,-145,-145,-147,-149,-157,-141,-145,-88,-94,-88,-127,-70,-125,-89,-157,-134,-155,-146,-206,-189,-203,-193,-680,-636,-29989,-29990,-29982,-29983,-29983,-29983]} 1. e4 {[%emt 0:00:02]} d5 {[%emt 0:00:04]} 2. exd5 {[%emt 0:00:01]} Qxd5 {[%emt 0:00:02]} 3. Nc3 {[%emt 0:00:01]} Qa5 {[%emt 0:00:01]} 4. d4 {[%emt 0:00:02]} Nf6 {[%emt 0:00:02]} 5. Nf3 {[%emt 0:00:01]} Bf5 {[%emt 0:00:03]} 6. Bd2 {[%emt 0:00:08]} e6 {[%emt 0:00:05] The modern move. B01: Scandinavian Defence.} 7. Ne4 {[%emt 0:00:24]} Qb6 {[%emt 0:00:03]} 8. Nxf6+ {[%emt 0:00:02]} gxf6 {[%emt 0:00:02] The position is equal.} 9. Bc3 {[%emt 0:01:05]} Nc6 {[%emt 0:00:28] [#]} 10. g3 $146 {[%emt 0:01:14]} (10. Bd3 $11) ({Predecessor:} 10. Bd3 Bg6 11. O-O O-O-O 12. d5 Rxd5 13. Bxf6 Rg8 14. Qe2 Bg7 15. Bxg7 Rxg7 16. b3 {1-0 (38) Arcos Tejeda,A-Wooten,M Tornelo INT 2021}) 10... O-O-O {[%emt 0:00:04]} (10... Nb4 $142 11. Bd3 Nxd3+ 12. cxd3 Qb5) 11. Bg2 {[%emt 0:01:10]} e5 {[%emt 0:00:46][%cal Re5d4]} 12. d5 {[%emt 0:02:21]} (12. O-O $142) 12... Nb4 $36 {[%emt 0:01:21][%mdl 2048] Black is in control.} 13. Bxb4 {[%emt 0:00:17]} Qxb4+ {[%emt 0:00:03]} ({Weaker is} 13... Bxb4+ 14. Nd2 $15) 14. c3 {[%emt 0:00:51]} Qe4+ {[%emt 0:00:39]} 15. Qe2 {[%emt 0:00:13]} Qxe2+ {[%emt 0:01:39]} ({Don't play} 15... Qxd5 $6 16. Nh4 Qd7 17. Nxf5 Qxf5 18. Qb5 $11) 16. Kxe2 {[%emt 0:00:02]} Rxd5 {[%emt 0:00:05]} 17. Nd4 {[%emt 0:02:23]} Bg4+ {[%emt 0:00:08]} 18. f3 {[%emt 0:00:02]} (18. Bf3 $17 {was called for.} Bxf3+ 19. Nxf3) 18... exd4 {[%emt 0:00:02]} (18... Bd7 $19 19. Nb3 h5) 19. fxg4 {[%emt 0:00:06]} d3+ {[%emt 0:01:08]} 20. Kd1 $1 {[%emt 0:00:22]} Rd6 {[%emt 0:00:14]} 21. Re1 {[%emt 0:00:22]} c6 {[%emt 0:01:21]} 22. Re8+ {[%emt 0:02:23]} Kd7 {[%emt 0:00:04]} (22... Kc7 $5 {[%cal Rd6e6]}) 23. Re3 {[%emt 0:00:12]} (23. Ra8 $11) 23... Bh6 {[%emt 0:00:07]} 24. Rf3 {[%emt 0:00:04]} (24. Re4 $15) 24... Re8 {[%emt 0:00:36] [#] aiming for ...Re2.} 25. Bf1 {[%emt 0:00:19] Inhibits Re2.} d2 {[%emt 0:02:32] ( -> ...Re1+)} 26. Be2 {[%emt 0:01:25]} Rde6 {[%emt 0:00:04]} 27. Rf2 {[%emt 0:00:28][%cal Og4g5]} Be3 {[%emt 0:01:26]} (27... Re4 $142 28. a4 a5) 28. Rg2 {[%emt 0:00:45]} Re5 {[%emt 0:01:02]} 29. Rb1 {[%emt 0:00:38]} a5 {[%emt 0:00:29] Black is much more active. The white rooks are badly placed.} (29... Bh6 $17 30. b4 R8e6) 30. b3 {[%emt 0:00:34]} (30. Bd3 $15) 30... Kc7 {[%emt 0:00:55]} 31. Rb2 {[%emt 0:00:20]} (31. Bd3 $142) 31... Rc5 32. Rc2 {[%emt 0:00:10]} b5 {[%emt 0:01:28][%cal Bb7b5,Bb5b4][%mdl 32]} 33. c4 {[%emt 0:01:18]} (33. Bf3 $17) 33... b4 $19 {[%emt 0:00:10]} 34. h4 {[%emt 0:00:32]} a4 {[%emt 0:01:02]} 35. Rh2 $2 {[%emt 0:00:50] [#]} (35. bxa4 Ra5 36. Bd3) 35... axb3 {[%emt 0:00:20]} 36. axb3 {[%emt 0:00:01]} Ra5 {[%emt 0:00:31] Inhibits Ra2. Black mates.} 37. Rxd2 {[%emt 0:00:21]} Ra1+ {[%emt 0:00:23]} 38. Kc2 {[%emt 0:00:05]} Ra2+ {[%emt 0:00:01] Weighted Error Value: White=0.60/Black=0.19 (very precise)} 0-1

[Event "Czech Open-Rapid 2022"]
[Site "Pardubice"]
[Date "2022.07.21"]
[Round "5.40"]
[White "Kokes, Bohuslav"]
[Black "Dolensky, Filip"]
[Result "0-1"]
[ECO "B40"]
[WhiteElo "1909"]
[BlackElo "2051"]
[Annotator "NA RC"]
[PlyCount "52"]
[EventDate "2022.07.20"]
[EventType "swiss"]
[EventCountry "CZE"]
[SourceTitle "playchess.com"]
[Source "ChessBase"]
[SourceQuality "1"]
[TimeControl "1200+10"]

1. e4 {[%emt 0:01:15]} c5 {[%emt 0:00:01]} 2. Nf3 {[%emt 0:00:07]} e6 {[%emt 0:00:02]} 3. d4 {[%emt 0:00:07]} cxd4 {[%emt 0:00:01]} 4. Nxd4 {[%emt 0:00:07]} Nf6 {[%emt 0:00:02]} 5. Bd3 {[%emt 0:00:12]} Nc6 {[%emt 0:00:33]} 6. Nb3 {[%emt 0:00:17]} d5 {[%emt 0:00:59]} 7. exd5 {[%emt 0:01:42]} Nxd5 {[%emt 0:00:13]} 8. O-O {[%emt 0:00:29]} Be7 {[%emt 0:00:08]} 9. N1d2 {[%emt 0:00:52]} O-O {[%emt 0:00:16]} 10. a3 {[%emt 0:02:16]} b6 {[%emt 0:02:48]} 11. Ne4 {[%emt 0:01:06]} Ne5 {[%emt 0:00:50]} 12. Be2 {[%emt 0:01:50]} Bb7 {[%emt 0:01:43]} 13. Nd4 {[%emt 0:04:12]} Rc8 {[%emt 0:00:34]} 14. Nf3 {[%emt 0:00:24]} Ng6 {[%emt 0:00:28]} 15. g3 {[%emt 0:01:19]} Qc7 {[%emt 0:00:28]} 16. Bd3 {[%emt 0:01:16]} Rfd8 {[%emt 0:00:23]} 17. Qe2 {[%emt 0:00:10]} Nf6 {[%emt 0:00:06]} 18. c3 {[%emt 0:01:32]} Rxd3 {[%emt 0:00:29]} 19. Nxf6+ {[%emt 0:00:12]} Bxf6 {[%emt 0:00:02]} 20. Qxd3 {[%emt 0:00:02]} Qc6 {[%emt 0:00:01]} 21. Rd1 {[%emt 0:00:29]} Ne5 {[%emt 0:00:25]} 22. Qe2 {[%emt 0:00:38]} Nxf3+ {[%emt 0:00:06]} 23. Kf1 {[%emt 0:00:02]} Nxh2+ {[%emt 0:00:39]} 24. Ke1 {[%emt 0:00:06]} Qh1+ {[%emt 0:00:40]} 25. Kd2 {[%emt 0:00:02]} Rd8+ {[%emt 0:00:06]} 26. Kc2 {[%emt 0:00:01]} Qe4+ {[%emt 0:00:11]} 0-1

[Event "Czech Open-Rapid 2022"]
[Site "Pardubice"]
[Date "2022.07.21"]
[Round "5.41"]
[White "Vorel, Bohuslav"]
[Black "Bouska, Jiri"]
[Result "0-1"]
[ECO "B72"]
[WhiteElo "1605"]
[BlackElo "2157"]
[Annotator "TA"]
[PlyCount "62"]
[EventDate "2022.07.20"]
[EventType "swiss"]
[EventCountry "CZE"]
[SourceTitle "playchess.com"]
[Source "ChessBase"]
[SourceQuality "1"]
[TimeControl "1200+10"]

{[%evp 20,62,39,33,52,43,89,-36,-23,-43,-21,-9,-8,-31,-18,-292,-291,-281,-291,-283,-286,-265,-270,-306,-312,-289,-246,-262,-268,-364,-368,-375,-375,-404,-402,-392,-375,-392,-373,-381,-381,-449,-429,-456,-459]} 1. e4 {[%emt 0:00:02]} c5 {[%emt 0:00:01]} 2. Nf3 {[%emt 0:00:05]} Nc6 {[%emt 0:00:01]} 3. d4 {[%emt 0:00:08]} cxd4 {[%emt 0:00:02]} 4. Nxd4 {[%emt 0:00:02]} g6 {[%emt 0:00:01]} 5. Nc3 {[%emt 0:00:06]} Bg7 {[%emt 0:00:02]} 6. Be3 {[%emt 0:00:35]} Nf6 {[%emt 0:00:05]} 7. Qd2 {[%emt 0:00:36]} O-O {[%emt 0:00:21]} 8. O-O-O {[%emt 0:00:05]} d6 {[%emt 0:02:51]} 9. Be2 {[%emt 0:00:06]} Nxd4 {[%emt 0:00:40]} 10. Bxd4 {[%emt 0:00:04]} Be6 {[%emt 0:00:02]} 11. Kb1 {[%emt 0:00:09]} a6 {[%emt 0:00:05] B72: Sicilian Dragon: 6 Be3, lines with h3+Bc4 and sidelines.} 12. h4 b5 {[%emt 0:00:07] [#]} (12... Qa5 $14 {was preferrable.} 13. Qg5 b5) 13. e5 $146 {[%emt 0:00:47]} (13. h5 $16) ({Predecessor:} 13. f3 Re8 14. h5 Qa5 15. hxg6 hxg6 16. Qg5 Rec8 17. Rh2 Rxc3 18. Bxc3 Qxa2+ 19. Kc1 {0-1 (61) Simic,D (2348)-Milenkovic,M (2380) Valjevo 2010}) 13... dxe5 $15 {[%emt 0:00:11] Black is slightly better.} 14. Bxe5 {[%emt 0:00:02]} Qxd2 {[%emt 0:01:31]} (14... b4 {keeps more tension.} 15. Bxf6 Bxf6 16. Ne4 Bg7) 15. Rxd2 {[%emt 0:00:05]} b4 {[%emt 0:00:23]} 16. Na4 {[%emt 0:00:20]} (16. Bxf6 $5 bxc3 17. Bxc3 $11) 16... Ne4 {[%emt 0:00:53][%csl LRd2,LRe5,LRf2]} 17. Bxg7 $4 {[%emt 0:03:18][%mdl 8192] [#] This costs White the game.} Nxd2+ $19 {[%emt 0:00:03]} 18. Kc1 {[%emt 0:00:01]} Kxg7 {[%emt 0:00:15]} 19. Kxd2 {[%emt 0:00:03]} Rfd8+ {[%emt 0:00:08]} ({Not} 19... Bxa2 20. b3 $15) 20. Bd3 {[%emt 0:00:03]} Bf5 {[%emt 0:00:09]} ({Weaker is} 20... Bxa2 21. b3 $15) 21. Re1 {[%emt 0:01:07]} Bxd3 {[%emt 0:00:06]} 22. cxd3 {[%emt 0:00:02][%mdl 4096] Endgame KRR-KRN} e6 {[%emt 0:00:16]} 23. Nc5 {[%emt 0:00:37]} Rd5 {[%emt 0:00:28]} 24. Nb3 {[%emt 0:00:11]} a5 {[%emt 0:00:14][%cal Ba6a5,Ba5a4][%mdl 32]} 25. Nc1 {[%emt 0:00:13]} Rc8 {[%emt 0:00:23] [#] Strongly threatening ...Rdc5.} 26. Ne2 {[%emt 0:01:09]} Rdc5 {[%emt 0:00:32] Threatens to win with ...Rc2+.} 27. Rc1 {[%emt 0:00:12] Inhibits Rc2+.} Rxc1 {[%emt 0:00:02]} 28. Nxc1 {[%emt 0:00:02]} Kf6 {[%emt 0:00:04]} 29. Nb3 {[%emt 0:00:07]} a4 {[%emt 0:00:03]} 30. Na5 {[%emt 0:00:18]} Ke5 {[%emt 0:00:14]} 31. g3 {[%emt 0:00:09]} Kd4 {[%emt 0:00:04] Weighted Error Value: White=0.53/Black=0.08 (flawless)} 0-1

[Event "Czech Open-Rapid 2022"]
[Site "Pardubice"]
[Date "2022.07.21"]
[Round "5.42"]
[White "Cejka, Jan"]
[Black "Postl, Petr"]
[Result "0-1"]
[ECO "B07"]
[WhiteElo "1731"]
[BlackElo "1900"]
[Annotator "TA"]
[PlyCount "58"]
[EventDate "2022.07.20"]
[EventType "swiss"]
[EventCountry "CZE"]
[SourceTitle "playchess.com"]
[Source "ChessBase"]
[SourceQuality "1"]
[TimeControl "1200+10"]

{[%evp 10,58,6,0,5,-31,-15,-258,-260,-251,-243,-343,-360,-337,-220,-402,-305,-420,-317,-418,-301,-363,-369,-356,-391,-386,-337,-400,-382,-420,-422,-452,-385,-386,-369,-384,-363,-599,-592,-718,-627,-600,-580,-652,-612,-842,-621,-779,-782,-1094,-1144]} 1. e4 {[%emt 0:00:02]} d6 {[%emt 0:00:03]} 2. d4 {[%emt 0:00:05]} Nf6 {[%emt 0:00:02]} 3. Nc3 {[%emt 0:00:05]} g6 {[%emt 0:00:03]} 4. Bf4 {[%emt 0:00:32]} Bg7 {[%emt 0:00:03]} 5. h3 {[%emt 0:00:05]} O-O {[%emt 0:00:08]} 6. Nf3 {[%emt 0:00:14]} Nbd7 {[%emt 0:00:27] B08: Pirc Defence: Classical System.} 7. g4 {[%emt 0:00:42]} c5 {[%emt 0:00:17] [#] And now ...cxd4 would win.} 8. Bg2 $146 {[%emt 0:00:27]} (8. e5 $11 {and White is okay.} Ne8 9. dxc5) ({Predecessor:} 8. d5 Qa5 9. Be2 Nxe4 10. O-O Bxc3 11. bxc3 Nxc3 12. Bd2 Nxe2+ 13. Qxe2 Qa4 14. Qxe7 f6 15. Bh6 Rf7 16. Qe8+ {1-0 (16) Bragason,G (1346)-Palmarsson,E (1343) Kopavogur 2014}) 8... cxd4 $19 {[%emt 0:00:34] Black has a decisive advantage.} 9. Nxd4 {[%emt 0:00:15]} e5 {[%emt 0:00:05]} 10. Bg5 {[%emt 0:01:20]} (10. Be3 $142 exd4 11. Bxd4) 10... exd4 {[%emt 0:00:10]} 11. Qxd4 {[%emt 0:00:08]} Qb6 {[%emt 0:00:11]} 12. Qd2 {[%emt 0:00:30]} (12. Qxb6 Nxb6 13. O-O-O) 12... Qxb2 {[%emt 0:01:12]} 13. O-O {[%emt 0:00:18]} Qb6 {[%emt 0:00:58]} 14. Kh1 {[%emt 0:00:46]} Ne5 {[%emt 0:01:04]} 15. Bxf6 {[%emt 0:01:33]} Bxf6 {[%emt 0:00:04]} 16. Nd5 {[%emt 0:00:02]} Qd8 {[%emt 0:00:06]} 17. f4 {[%emt 0:00:22]} Nc6 {[%emt 0:00:27]} 18. Nxf6+ {[%emt 0:02:01]} Qxf6 {[%emt 0:00:02]} 19. g5 {[%emt 0:00:01]} Qd4 {[%emt 0:00:07]} 20. Qe1 {[%emt 0:00:29]} f5 {[%emt 0:00:53][%cal Bf7f5,Bf5e4][%mdl 32]} 21. Rd1 {[%emt 0:00:57]} Qc5 {[%emt 0:01:27] Strongly threatening ...Re8.} 22. Rd5 {[%emt 0:01:07]} Qa3 {[%emt 0:00:42] [#] ...fxe4 is the strong threat.} 23. Qd2 $2 (23. Rd3 Qb2 24. Rxd6 fxe4 25. Qxe4) 23... fxe4 {Black is clearly winning.} 24. Rxd6 {[%emt 0:02:46]} Bf5 {[%emt 0:00:13]} 25. Qd5+ {[%emt 0:00:36]} Rf7 {[%emt 0:01:17]} 26. Rd1 {[%emt 0:00:46]} Kg7 {[%emt 0:00:16]} 27. h4 {[%emt 0:01:31]} Raf8 {[%emt 0:00:28]} 28. h5 {[%emt 0:00:36]} gxh5 {[%emt 0:00:09] Threatens to win with ...Qg3.} 29. Rh6 {[%emt 0:00:32]} Rd8 {[%emt 0:00:50] White got outplayed after the opening.  Weighted Error Value: White=1.01/Black=0.51} 0-1

[Event "Czech Open-Rapid 2022"]
[Site "Pardubice"]
[Date "2022.07.21"]
[Round "5.43"]
[White "Koska, Jiri"]
[Black "Chrz, Pavel"]
[Result "0-1"]
[ECO "A04"]
[WhiteElo "1856"]
[BlackElo "1986"]
[Annotator "TA"]
[PlyCount "92"]
[EventDate "2022.07.20"]
[EventType "swiss"]
[EventCountry "CZE"]
[SourceTitle "playchess.com"]
[Source "ChessBase"]
[SourceQuality "1"]
[TimeControl "1200+10"]

{[%evp 9,91,0,0,8,14,0,29,27,21,18,51,5,57,0,37,54,51,60,60,52,130,133,129,122,125,123,121,120,143,74,82,82,97,94,138,138,139,139,144,123,147,125,160,154,372,0,0,0,0,-266,-269,-262,-257,-308,-272,-250,-198,-143,-135,-574,-622,-596,-595,-1119,-998,-12841,-12841,-12839,-12825,-6141,-6141,-29992,-29993,-29993,-29994,-29994,-29994,-29994,-29995,-29996,-29997,-29998,-29999,-29999]} 1. Nf3 {[%emt 0:00:02]} c5 {[%emt 0:00:19]} 2. g3 {[%emt 0:00:02]} g6 {[%emt 0:00:05]} 3. Bg2 {[%emt 0:00:01]} Bg7 {[%emt 0:00:03]} 4. O-O {[%emt 0:00:03]} Nc6 {[%emt 0:00:09]} 5. d3 {[%emt 0:00:12]} Nf6 {[%emt 0:00:06]} 6. c4 {[%emt 0:00:14] A05: Réti Opening: 1 Nf3 Nf6.} d5 {[%emt 0:00:34]} 7. Nc3 {[%emt 0:00:19] 7.Nc3 is better than 7.cxd5.} dxc4 {[%emt 0:00:31]} (7... O-O $5 {[%cal Rd5d4]}) 8. dxc4 {[%emt 0:00:06] White has an edge.} Bg4 {[%emt 0:00:21]} 9. Be3 {[%emt 0:00:22]} Qa5 {[%emt 0:01:00]} 10. Qa4 {[%emt 0:01:22]} (10. Qb3 $14 {might be stronger.}) 10... O-O {[%emt 0:03:50] [#]} (10... Qxa4 $11 11. Nxa4 b6) 11. Rac1 $146 {[%emt 0:01:49]} (11. Qb5 $14) ({Predecessor:} 11. h3 Be6 12. Qxa5 Nxa5 13. b3 Nd7 14. Rac1 h6 15. Nb5 b6 16. Rfd1 a6 17. Nc7 Rad8 18. Nxe6 fxe6 {½-½ (56) Wolske,G-Schmuecker,M Recklinghausen 1995}) 11... Rac8 {[%emt 0:02:02]} 12. h3 {[%emt 0:02:25]} Qxa4 {[%emt 0:03:31]} 13. Nxa4 {[%emt 0:00:02]} Bxf3 {[%emt 0:00:01]} 14. Bxf3 {[%emt 0:00:06]} Nd4 {[%emt 0:00:05]} (14... b6 $14) 15. Bxd4 $16 {[%emt 0:00:16]} ({Much worse is} 15. Bxb7 $6 Nxe2+ 16. Kg2 Rc7 $11) 15... cxd4 {[%emt 0:00:01]} 16. Bxb7 {[%emt 0:00:08]} Rc7 {[%emt 0:00:06]} 17. Bg2 {[%emt 0:00:12]} e5 {[%emt 0:01:29]} 18. Rfd1 Rfc8 {[%emt 0:01:00] [#]} 19. b3 {[%emt 0:00:17]} ({Better is} 19. c5 $1) 19... Nd7 {[%emt 0:01:05]} 20. Rc2 {[%emt 0:04:18][%cal Bc1c2,Bc2e2,Be2e3][%mdl 32]} f5 {[%emt 0:00:50]} 21. e3 {[%emt 0:01:30]} Kf8 {[%emt 0:01:53]} 22. exd4 {[%emt 0:01:51]} exd4 {[%emt 0:00:03]} 23. Re2 {[%emt 0:00:44]} Rd8 {[%emt 0:02:11]} 24. f4 {[%emt 0:03:02]} Nf6 {[%emt 0:00:32]} 25. Kf2 {[%emt 0:02:50]} d3 {[%emt 0:00:55][%cal Of6e4]} 26. Re3 {[%emt 0:00:40] Inhibits Ne4+.} Ne4+ $2 {[%emt 0:01:17]} (26... d2 $16 {was worth a try.} 27. Ke2 h5) 27. Ke1 $2 {[%emt 0:01:32]} (27. Bxe4 $18 fxe4 28. Rxe4) 27... Re7 $1 $11 {[%emt 0:00:15]} (27... d2+ $2 28. Ke2 $18) 28. Bxe4 {[%emt 0:00:12]} ({But not} 28. Rdxd3 Rxd3 29. Rxd3 Nc5+ 30. Kd2 Nxd3 31. Kxd3 Re1 $17) 28... fxe4 {[%emt 0:00:07]} (28... Rxe4 $2 29. Kd2 $18) 29. Kf1 $2 {[%emt 0:00:10][%mdl 8192]} (29. Kd2 $11) 29... Bd4 $19 {[%emt 0:00:06]} 30. Ree1 {[%emt 0:00:04]} a5 {[%emt 0:00:15]} 31. Kg2 {[%emt 0:00:06]} Kf7 {[%emt 0:00:08]} 32. Rf1 {[%emt 0:00:08]} Ba7 {[%emt 0:00:06] Strongly threatening ...e3.} 33. Rfe1 {[%emt 0:00:08] [#]} e3 $1 {[%emt 0:00:05][%mdl 1024] aiming for ...e2. Black has strong compensation. 0x0.002098c56ebcdp-1022s more active pieces.} 34. Nc3 {[%mdl 8192]} (34. c5 $17) 34... e2 {[%emt 0:00:24]} 35. Rd2 {[%emt 0:00:12]} Be3 {[%emt 0:00:10]} 36. Rb2 {[%emt 0:00:30]} Bd4 {[%emt 0:00:10]} 37. Nd5 {[%emt 0:00:12]} Bxb2 {[%emt 0:00:05]} 38. Nxe7 {[%emt 0:00:01]} Kxe7 {[%emt 0:00:02][%mdl 4096] Endgame KRB-KR} 39. Kf3 {[%emt 0:00:04]} Bc3 {[%emt 0:00:06]} 40. Rb1 {[%emt 0:00:08]} e1=Q {[%emt 0:00:05] Black mates.} 41. Rxe1+ Bxe1 {[%emt 0:00:02]} 42. f5 {[%emt 0:00:28]} gxf5 {[%emt 0:00:02]} 43. g4 {[%emt 0:00:01]} d2 {[%emt 0:00:02]} 44. gxf5 {[%emt 0:00:02]} d1=Q+ {[%emt 0:00:03]} 45. Kf4 {[%emt 0:00:05]} Rd4+ {[%emt 0:00:02]} 46. Kg5 {[%emt 0:00:01]} Bd2# {Weighted Error Value: White=0.76/Black=0.21 (precise)} 0-1